fUST/lending_fUST_20250528
["ID","MTS","AMOUNT","RATE_DAILY","PERIOD"]
[362684751,1748397040486,-430.0,0.00019178,2]
[362684753,1748397040495,-430.0,0.00019178,2]
[362684755,1748397040503,-430.0,0.00019178,2]
[362684757,1748397040513,-451.36951376,0.00019178,2]
[362684759,1748397040522,-180.82114654,0.00019178,2]
[362685036,1748397043383,-221.07390461,0.00019178,2]
[362685038,1748397043394,-402.24215493,0.00019178,2]
[362685040,1748397043403,-500.0,0.00019178,2]
[362685042,1748397043413,-443.97744788,0.00019178,2]
[362685044,1748397043422,-500.0,0.00019178,2]
[362685046,1748397043433,-500.0,0.00019178,2]
[362685048,1748397043444,-500.0,0.00019178,2]
[362685050,1748397043453,-500.0,0.00019178,2]
[362685052,1748397043462,-500.0,0.00019178,2]
[362685054,1748397043472,-500.0,0.00019178,2]
[362685056,1748397043481,-451.72980714,0.00019178,2]
[362685058,1748397043491,-430.0,0.00019178,2]
[362685060,1748397043500,-401.62514959,0.00019178,2]
[362685062,1748397043509,-301.97732676,0.00019178,2]
[362685064,1748397043519,-430.0,0.00019178,2]
[362685067,1748397043529,-400.94941082,0.00019178,2]
[362685068,1748397043538,-451.81709034,0.00019178,2]
[362685071,1748397043548,-452.18799192,0.00019178,2]
[362685072,1748397043557,-441.54551135,0.00019178,2]
[362685074,1748397043567,-450.36062917,0.00019178,2]
[362685076,1748397043576,-430.0,0.00019178,2]
[362685078,1748397043585,-430.0,0.00019178,2]
[362685080,1748397043595,-445.5575465,0.00019178,2]
[362685082,1748397043604,-435.71771863,0.00019178,2]
[362685084,1748397043614,-331.63981968,0.00019178,2]
[362685087,1748397043623,-436.68670186,0.00019178,2]
[362685088,1748397043632,-430.0,0.00019178,2]
[362685090,1748397043641,-433.62279406,0.00019178,2]
[362685093,1748397043650,-291.89629619,0.00019178,2]
[362685323,1748397046091,-163.78215465,0.00019178,2]
[362685325,1748397046101,-430.0,0.00019178,2]
[362685327,1748397046111,-448.51566442,0.00019178,2]
[362685329,1748397046120,-555.30424158,0.00019178,2]
[362685331,1748397046130,-455.77221772,0.00019178,2]
[362685333,1748397046140,-436.38491585,0.00019178,2]
[362685335,1748397046149,-440.41387273,0.00019178,2]
[362685337,1748397046159,-273.02118894,0.00019178,2]
[362685339,1748397046169,-438.1685906,0.00019178,2]
[362685341,1748397046180,-401.59649449,0.00019178,2]
[362685343,1748397046190,-442.67985336,0.00019178,2]
[362685345,1748397046199,-430.0,0.00019178,2]
[362685347,1748397046209,-435.25468942,0.00019178,2]
[362685349,1748397046218,-447.75671827,0.00019178,2]
[362685351,1748397046228,-435.97065882,0.00019178,2]
[362685354,1748397046237,-441.39965353,0.00019178,2]
[362685357,1748397046247,-403.27945068,0.00019178,2]
[362685359,1748397046256,-430.0,0.00019178,2]
[362685361,1748397046266,-431.03,0.00019178,2]
[362685363,1748397046275,-433.38836406,0.00019178,2]
[362685365,1748397046284,-430.0,0.00019178,2]
[362685367,1748397046296,-430.0,0.00019178,2]
[362685369,1748397046306,-468.294984,0.00019178,2]
[362685371,1748397046316,-430.0,0.00019178,2]
[362685373,1748397046325,-438.28018187,0.00019178,2]
[362685375,1748397046334,-437.0545288,0.00019178,2]
[362685377,1748397046343,-401.82420792,0.00019178,2]
[362685379,1748397046354,-430.0,0.00019178,2]
[362685380,1748397046366,-430.89611725,0.00019178,2]
[362685383,1748397046376,-430.0,0.00019178,2]
[362685385,1748397046385,-430.0,0.00019178,2]
[362685387,1748397046395,-430.68494467,0.00019178,2]
[362685389,1748397046405,-430.0,0.00019178,2]
[362685391,1748397046415,-497.89673747,0.00019178,2]
[362685393,1748397046424,-442.82332956,0.00019178,2]
[362685395,1748397046434,-439.48600494,0.00019178,2]
[362685397,1748397046443,-430.0,0.00019178,2]
[362685399,1748397046452,-430.0,0.00019178,2]
[362685401,1748397046462,-445.27166558,0.00019178,2]
[362685403,1748397046471,-442.70981315,0.00019178,2]
[362685405,1748397046480,-430.0,0.00019178,2]
[362685406,1748397046490,-434.82718722,0.00019178,2]
[362685408,1748397046500,-439.06232774,0.00019178,2]
[362685410,1748397046509,-430.0,0.00019178,2]
[362685412,1748397046518,-404.54922911,0.00019178,2]
[362685414,1748397046527,-437.5446605,0.00019178,2]
[362685416,1748397046537,-435.08723823,0.00019178,2]
[362685418,1748397046554,-430.0,0.00019178,2]
[362685420,1748397046564,-450.13679236,0.00019178,2]
[362685422,1748397046574,-1024.5551104,0.00019178,2]
[362685424,1748397046583,-430.0,0.00019178,2]
[362685426,1748397046593,-437.94082265,0.00019178,2]
[362685428,1748397046602,-430.0,0.00019178,2]
[362685430,1748397046611,-440.81193207,0.00019178,2]
[362685432,1748397046621,-430.0,0.00019178,2]
[362685434,1748397046630,-444.45479182,0.00019178,2]
[362685436,1748397046640,-456.77399138,0.00019178,2]
[362685438,1748397046651,-447.85782672,0.00019178,2]
[362685440,1748397046661,-450.03554685,0.00019178,2]
[362685442,1748397046671,-443.89929707,0.00019178,2]
[362685444,1748397046680,-445.1234149,0.00019178,2]
[362685446,1748397046690,-447.95330865,0.00019178,2]
[362685448,1748397046699,-441.81728725,0.00019178,2]
[362685450,1748397046709,-3523.1,0.00019178,2]
[362685452,1748397046719,-449.67952755,0.00019178,2]
[362685454,1748397046729,-442.5895884,0.00019178,2]
[362685456,1748397046739,-430.0,0.00019178,2]
[362685458,1748397046748,-288.66627687,0.00019178,2]
[362685461,1748397046758,-442.68032576,0.00019178,2]
[362685463,1748397046767,-430.0,0.00019178,2]
[362685464,1748397046776,-500.0,0.00019178,2]
[362685467,1748397046786,-500.0,0.00019178,2]
[362685469,1748397046798,-152.26512934,0.00019178,2]
[362685470,1748397046807,-567.63217713,0.00019178,2]
[362685473,1748397046816,-436.02389919,0.00019178,2]
[362685475,1748397046826,-440.50771561,0.00019178,2]
[362685477,1748397046835,-447.28728108,0.00019178,2]
[362685478,1748397046844,-440.78882127,0.00019178,2]
[362685480,1748397046854,-462.14615995,0.00019178,2]
[362685483,1748397046863,-430.0,0.00019178,2]
[362685484,1748397046873,-435.82114818,0.00019178,2]
[362685486,1748397046882,-433.98446327,0.00019178,2]
[362685488,1748397046892,-430.0,0.00019178,2]
[362685490,1748397046901,-430.0,0.00019178,2]
[362685492,1748397046910,-430.0,0.00019178,2]
[362685494,1748397046919,-170.26983824,0.00019178,2]
[362685496,1748397046928,-430.0,0.00019178,2]
[362685498,1748397046938,-540.0,0.00019178,2]
[362685500,1748397046947,-430.0,0.00019178,2]
[362685502,1748397046956,-461.11549076,0.00019178,2]
[362685504,1748397046966,-643.33,0.00019178,2]
[362685506,1748397046975,-328.5202815,0.00019178,2]
[362685508,1748397046985,-430.0,0.00019178,2]
[362685510,1748397046994,-455.8582304,0.00019178,2]
[362685512,1748397047003,-441.73447325,0.00019178,2]
[362685514,1748397047013,-441.95636161,0.00019178,2]
[362685516,1748397047022,-430.0,0.00019178,2]
[362685518,1748397047032,-434.38194584,0.00019178,2]
[362685520,1748397047047,-440.11120673,0.00019178,2]
[362685522,1748397047056,-440.71595603,0.00019178,2]
[362685524,1748397047065,-430.0,0.00019178,2]
[362685526,1748397047075,-863.47,0.00019178,2]
[362685528,1748397047084,-400.540511,0.00019178,2]
[362685530,1748397047094,-430.0,0.00019178,2]
[362685532,1748397047103,-443.08937843,0.00019178,2]
[362685534,1748397047112,-436.67791407,0.00019178,2]
[362685536,1748397047121,-442.9946078,0.00019178,2]
[362685538,1748397047131,-453.39166315,0.00019178,2]
[362685540,1748397047140,-442.84527627,0.00019178,2]
[362685542,1748397047149,-471.68886244,0.00019178,2]
[362685544,1748397047158,-435.8126798,0.00019178,2]
[362685546,1748397047167,-437.36457735,0.00019178,2]
[362685547,1748397047177,-442.12365908,0.00019178,2]
[362685550,1748397047187,-423.87923633,0.00019178,2]
[362685552,1748397047196,-401.11873519,0.00019178,2]
[362685554,1748397047206,-430.0,0.00019178,2]
[362685555,1748397047215,-441.52767127,0.00019178,2]
[362685557,1748397047224,-430.0,0.00019178,2]
[362685559,1748397047234,-430.0,0.00019178,2]
[362685562,1748397047243,-464.62805449,0.00019178,2]
[362685563,1748397047253,-430.0,0.00019178,2]
[362685565,1748397047263,-438.17971243,0.00019178,2]
[362685568,1748397047272,-430.0,0.00019178,2]
[362685569,1748397047282,-430.0,0.00019178,2]
[362685571,1748397047291,-455.62154873,0.00019178,2]
[362685573,1748397047303,-435.07749501,0.00019178,2]
[362685575,1748397047312,-430.0,0.00019178,2]
[362685577,1748397047321,-468.00123309,0.00019178,2]
[362685579,1748397047330,-435.744024,0.00019178,2]
[362685582,1748397047339,-430.0,0.00019178,2]
[362685584,1748397047350,-433.39889198,0.00019178,2]
[362685586,1748397047363,-430.0,0.00019178,2]
[362685587,1748397047373,-430.0,0.00019178,2]
[362685589,1748397047383,-430.0,0.00019178,2]
[362685591,1748397047393,-430.0,0.00019178,2]
[362685593,1748397047404,-455.16319938,0.00019178,2]
[362685595,1748397047413,-401.35682388,0.00019178,2]
[362685597,1748397047423,-479.91564972,0.00019178,2]
[362685599,1748397047433,-430.0,0.00019178,2]
[362685601,1748397047443,-299.56764622,0.00019178,2]
[362685604,1748397047453,-450.88219882,0.00019178,2]
[362685606,1748397047462,-430.0,0.00019178,2]
[362685608,1748397047472,-430.0,0.00019178,2]
[362685610,1748397047481,-430.0,0.00019178,2]
[362685611,1748397047491,-430.0,0.00019178,2]
[362685614,1748397047500,-472.14141147,0.00019178,2]
[362685616,1748397047510,-430.0,0.00019178,2]
[362685618,1748397047519,-430.0,0.00019178,2]
[362685619,1748397047528,-446.195913,0.00019178,2]
[362685622,1748397047538,-457.94591569,0.00019178,2]
[362685623,1748397047548,-433.73401036,0.00019178,2]
[362685624,1748397047557,-430.0,0.00019178,2]
[362685625,1748397047567,-430.0,0.00019178,2]
[362685626,1748397047576,-430.0,0.00019178,2]
[362685627,1748397047586,-436.26776188,0.00019178,2]
[362685628,1748397047595,-430.0,0.00019178,2]
[362685629,1748397047606,-430.0,0.00019178,2]
[362685630,1748397047616,-435.99039351,0.00019178,2]
[362685632,1748397047626,-401.83119761,0.00019178,2]
[362685634,1748397047635,-442.69,0.00019178,2]
[362685636,1748397047644,-434.74320881,0.00019178,2]
[362685638,1748397047654,-430.0,0.00019178,2]
[362685641,1748397047664,-440.62505349,0.00019178,2]
[362685643,1748397047674,-430.0,0.00019178,2]
[362685644,1748397047683,-452.16579249,0.00019178,2]
[362685646,1748397047692,-433.83538739,0.00019178,2]
[362685649,1748397047702,-438.1930003,0.00019178,2]
[362685650,1748397047711,-437.58876601,0.00019178,2]
[362685652,1748397047720,-440.80768604,0.00019178,2]
[362685655,1748397047730,-372.85296657,0.00019178,2]
[362685657,1748397047739,-450.89389746,0.00019178,2]
[362685658,1748397047748,-438.64837616,0.00019178,2]
[362685661,1748397047758,-430.0,0.00019178,2]
[362685663,1748397047768,-439.46234479,0.00019178,2]
[362685665,1748397047778,-581.12,0.00019178,2]
[362685666,1748397047787,-430.0,0.00019178,2]
[362685668,1748397047798,-430.0,0.00019178,2]
[362685670,1748397047807,-435.25599407,0.00019178,2]
[362685672,1748397047816,-1389.69,0.00019178,2]
[362685675,1748397047827,-442.21757223,0.00019178,2]
[362685677,1748397047836,-430.0,0.00019178,2]
[362685679,1748397047845,-430.0,0.00019178,2]
[362685681,1748397047853,-463.94101185,0.00019178,2]
[362685683,1748397047862,-436.52321224,0.00019178,2]
[362685685,1748397047871,-430.0,0.00019178,2]
[362685687,1748397047880,-434.26341699,0.00019178,2]
[362685689,1748397047890,-2359.7,0.00019178,2]
[362685690,1748397047899,-430.0,0.00019178,2]
[362685693,1748397047909,-685.14,0.00019178,2]
[362685695,1748397047918,-430.0,0.00019178,2]
[362685696,1748397047927,-500.0,0.00019178,2]
[362685698,1748397047937,-500.0,0.00019178,2]
[362685700,1748397047947,-587.27087981,0.00019178,2]
[362685703,1748397047958,-430.0,0.00019178,2]
[362685705,1748397047967,-430.0,0.00019178,2]
[362685706,1748397047976,-457.49252041,0.00019178,2]
[362685708,1748397047985,-430.0,0.00019178,2]
[362685711,1748397047995,-1968.12,0.00019178,2]
[362685713,1748397048004,-430.0,0.00019178,2]
[362685715,1748397048013,-430.0,0.00019178,2]
[362685717,1748397048022,-214.7687816,0.00019178,2]
[362685719,1748397048031,-408.0836558,0.00019178,2]
[362685721,1748397048041,-430.0,0.00019178,2]
[362685723,1748397048051,-432.41298879,0.00019178,2]
[362685724,1748397048061,-3368.07,0.00019178,2]
[362685727,1748397048071,-439.86641226,0.00019178,2]
[362685729,1748397048080,-430.0,0.00019178,2]
[362685731,1748397048090,-443.11209724,0.00019178,2]
[362685732,1748397048099,-434.53253695,0.00019178,2]
[362685734,1748397048109,-439.18248585,0.00019178,2]
[362685737,1748397048119,-452.17189735,0.00019178,2]
[362685739,1748397048128,-430.0,0.00019178,2]
[362685741,1748397048138,-152.0,0.00019411,2]
[362685743,1748397048147,-290.80939,0.00019451,2]
[362685745,1748397048156,-434.94261069,0.00019452,2]
[362685747,1748397048166,-472.65394313,0.00019452,2]
[362685749,1748397048177,-434.96738513,0.00019452,2]
[362685762,1748397048289,-434.67278052,0.00019452,2]
[362685764,1748397048301,-435.49408378,0.00019452,2]
[362685766,1748397048310,-435.50451727,0.00019452,2]
[362685768,1748397048320,-434.55240015,0.00019452,2]
[362685770,1748397048329,-470.79989853,0.00019452,2]
[362685772,1748397048339,-433.70551913,0.00019452,2]
[362685774,1748397048348,-437.73198314,0.00019452,2]
[362685776,1748397048361,-436.38801259,0.00019452,2]
[362685778,1748397048370,-436.87418304,0.00019452,2]
[362685780,1748397048379,-434.0013608,0.00019452,2]
[362685782,1748397048388,-430.0,0.00019452,2]
[362685784,1748397048398,-430.0,0.00019452,2]
[362685786,1748397048407,-441.78577258,0.00019452,2]
[362685788,1748397048416,-430.0,0.00019452,2]
[362685790,1748397048425,-460.25692161,0.00019452,2]
[362685792,1748397048435,-430.0,0.00019452,2]
[362685794,1748397048445,-431.03,0.00019452,2]
[362685796,1748397048455,-438.08305377,0.00019452,2]
[362685798,1748397048465,-438.31463238,0.00019452,2]
[362685800,1748397048474,-446.93275693,0.00019452,2]
[362685802,1748397048484,-442.365075,0.00019452,2]
[362685804,1748397048493,-438.98445037,0.00019452,2]
[362685806,1748397048503,-430.0,0.00019452,2]
[362685808,1748397048513,-430.0,0.00019452,2]
[362685810,1748397048522,-430.0,0.00019452,2]
[362685812,1748397048532,-450.16676742,0.00019452,2]
[362685814,1748397048541,-430.0,0.00019452,2]
[362685816,1748397048551,-430.0,0.00019452,2]
[362685818,1748397048560,-440.86855738,0.00019452,2]
[362685820,1748397048570,-437.0147039,0.00019452,2]
[362685822,1748397048580,-430.0,0.00019452,2]
[362685825,1748397048589,-430.0,0.00019452,2]
[362685827,1748397048599,-3523.1,0.00019452,2]
[362685829,1748397048608,-430.0,0.00019452,2]
[362685831,1748397048617,-430.0,0.00019452,2]
[362685833,1748397048626,-430.0,0.00019452,2]
[362685834,1748397048635,-430.0,0.00019452,2]
[362685837,1748397048644,-466.95656921,0.00019452,2]
[362685839,1748397048654,-446.73739135,0.00019452,2]
[362685841,1748397048663,-430.0,0.00019452,2]
[362685843,1748397048672,-435.06671954,0.00019452,2]
[362685845,1748397048682,-643.33,0.00019452,2]
[362685847,1748397048691,-430.0,0.00019452,2]
[362685849,1748397048701,-430.0,0.00019452,2]
[362685851,1748397048711,-430.0,0.00019452,2]
[362685853,1748397048720,-863.47,0.00019452,2]
[362685855,1748397048729,-448.12730086,0.00019452,2]
[362685857,1748397048738,-435.24451574,0.00019452,2]
[362685859,1748397048748,-453.63016459,0.00019452,2]
[362685861,1748397048757,-438.81139557,0.00019452,2]
[362685863,1748397048767,-435.86830476,0.00019452,2]
[362685865,1748397048778,-500.43157278,0.00019452,2]
[362685867,1748397048787,-430.0,0.00019452,2]
[362685869,1748397048797,-430.0,0.00019452,2]
[362685871,1748397048806,-474.34120671,0.00019452,2]
[362685873,1748397048815,-430.0,0.00019452,2]
[362685875,1748397048825,-446.04193196,0.00019452,2]
[362685877,1748397048835,-436.89510915,0.00019452,2]
[362685879,1748397048844,-430.0,0.00019452,2]
[362685881,1748397048854,-435.71122336,0.00019452,2]
[362685883,1748397048863,-473.300859,0.00019452,2]
[362685885,1748397048873,-450.17087921,0.00019452,2]
[362685887,1748397048882,-207.90247379,0.00019452,2]
[362685889,1748397048892,-447.15126519,0.00019452,2]
[362685891,1748397048902,-430.0,0.00019452,2]
[362685893,1748397048912,-450.83949237,0.00019452,2]
[362685895,1748397048922,-430.0,0.00019452,2]
[362685897,1748397048933,-430.0,0.00019452,2]
[362685900,1748397048943,-440.84331326,0.00019452,2]
[362685902,1748397048952,-430.0,0.00019452,2]
[362685903,1748397048962,-442.69,0.00019452,2]
[362685905,1748397048972,-430.0,0.00019452,2]
[362685907,1748397048982,-445.54212639,0.00019452,2]
[362685909,1748397048992,-439.41041256,0.00019452,2]
[362685912,1748397049002,-581.12,0.00019452,2]
[362685914,1748397049012,-437.7812393,0.00019452,2]
[362685916,1748397049022,-439.5003141,0.00019452,2]
[362685918,1748397049031,-1389.69,0.00019452,2]
[362685920,1748397049040,-436.88390886,0.00019452,2]
[362685922,1748397049051,-430.0,0.00019452,2]
[362685924,1748397049061,-430.0,0.00019452,2]
[362685926,1748397049071,-2359.7,0.00019452,2]
[362685928,1748397049081,-437.57612039,0.00019452,2]
[362685930,1748397049091,-685.14,0.00019452,2]
[362685932,1748397049101,-438.34180978,0.00019452,2]
[362685934,1748397049111,-445.20991552,0.00019452,2]
[362685936,1748397049121,-445.42880802,0.00019452,2]
[362685938,1748397049130,-433.96203716,0.00019452,2]
[362685940,1748397049139,-1968.12,0.00019452,2]
[362685942,1748397049148,-449.28626183,0.00019452,2]
[362685943,1748397049158,-430.0,0.00019452,2]
[362685946,1748397049168,-3368.07,0.00019452,2]
[362685948,1748397049177,-317.08154554,0.00019452,2]
[362685950,1748397049186,-433.68861595,0.00019452,2]
[362685952,1748397049197,-509.22659925,0.00019721,2]
[362685954,1748397049207,-430.0,0.00019726,2]
[362685956,1748397049217,-430.0,0.00019726,2]
[362685958,1748397049227,-430.0,0.00019726,2]
[362685960,1748397049237,-430.0,0.00019726,2]
[362685962,1748397049247,-431.03,0.00019726,2]
[362685964,1748397049257,-448.30933052,0.00019726,2]
[362685966,1748397049266,-453.02550279,0.00019726,2]
[362685968,1748397049276,-430.0,0.00019726,2]
[362685970,1748397049285,-375.44436575,0.00019726,2]
[362685972,1748397049297,-430.0,0.00019726,2]
[362685974,1748397049308,-430.0,0.00019726,2]
[362685976,1748397049317,-430.0,0.00019726,2]
[362685978,1748397049327,-3523.1,0.00019726,2]
[362685980,1748397049336,-544.5792362,0.00019726,2]
[362685982,1748397049346,-430.0,0.00019726,2]
[362685983,1748397049357,-430.0,0.00019726,2]
[362685986,1748397049368,-430.0,0.00019726,2]
[362685988,1748397049377,-430.0,0.00019726,2]
[362685990,1748397049387,-643.33,0.00019726,2]
[362685992,1748397049398,-430.0,0.00019726,2]
[362685994,1748397049407,-430.0,0.00019726,2]
[362685996,1748397049417,-430.0,0.00019726,2]
[362685998,1748397049427,-863.47,0.00019726,2]
[362686000,1748397049437,-430.0,0.00019726,2]
[362686002,1748397049447,-430.0,0.00019726,2]
[362686004,1748397049457,-440.30181633,0.00019726,2]
[362686006,1748397049466,-515.19400345,0.00019726,2]
[362686008,1748397049476,-430.0,0.00019726,2]
[362686010,1748397049485,-430.0,0.00019726,2]
[362686012,1748397049495,-430.0,0.00019726,2]
[362686014,1748397049504,-430.0,0.00019726,2]
[362686016,1748397049514,-442.69,0.00019726,2]
[362686018,1748397049524,-311.59194124,0.00019726,2]
[362686020,1748397049534,-581.12,0.00019726,2]
[362686022,1748397049544,-1389.69,0.00019726,2]
[362686024,1748397049555,-551.75868215,0.00019726,2]
[362686026,1748397049565,-437.23646436,0.00019726,2]
[362686028,1748397049575,-2359.7,0.00019726,2]
[362686030,1748397049584,-685.14,0.00019726,2]
[362686032,1748397049593,-1968.12,0.00019726,2]
[362686034,1748397049602,-430.0,0.00019726,2]
[362686036,1748397049611,-3368.07,0.00019726,2]
[362686038,1748397049621,-153.0,0.00019848,2]
[362686040,1748397049630,-474.81418451,0.000199,2]
[362686042,1748397049648,-437.29390039,0.0002,2]
[362686044,1748397049658,-430.0,0.0002,2]
[362686046,1748397049671,-396.70181378,0.0002,2]
[362686048,1748397049681,-430.0,0.0002,2]
[362686050,1748397049691,-431.03,0.0002,2]
[362686052,1748397049701,-466.2215306,0.0002,2]
[362686054,1748397049711,-430.0,0.0002,2]
[362686056,1748397049721,-534.55562588,0.0002,2]
[362686058,1748397049730,-430.0,0.0002,2]
[362686060,1748397049740,-3523.1,0.0002,2]
[362686062,1748397049749,-430.0,0.0002,2]
[362686064,1748397049758,-430.0,0.0002,2]
[362686066,1748397049769,-430.0,0.0002,2]
[362686068,1748397049778,-430.0,0.0002,2]
[362686070,1748397049788,-643.33,0.0002,2]
[362686072,1748397049798,-430.0,0.0002,2]
[362686074,1748397049807,-430.0,0.0002,2]
[362686076,1748397049816,-430.0,0.0002,2]
[362686078,1748397049826,-863.47,0.0002,2]
[362686080,1748397049835,-430.0,0.0002,2]
[362686082,1748397049844,-430.0,0.0002,2]
[362686083,1748397049853,-430.0,0.0002,2]
[362686086,1748397049863,-430.0,0.0002,2]
[362686087,1748397049873,-430.0,0.0002,2]
[362686089,1748397049884,-430.0,0.0002,2]
[362686091,1748397049894,-442.69,0.0002,2]
[362686093,1748397049903,-581.12,0.0002,2]
[362686095,1748397049912,-1389.69,0.0002,2]
[362686097,1748397049921,-2359.7,0.0002,2]
[362686099,1748397049931,-685.14,0.0002,2]
[362686101,1748397049940,-1968.12,0.0002,2]
[362686103,1748397049949,-430.0,0.0002,2]
[362686105,1748397049959,-3368.07,0.0002,2]
[362686107,1748397049968,-474.81418434,0.00020072,2]
[362686109,1748397049978,-227.316632,0.00020187,2]
[362686111,1748397049987,-160.0,0.00020226,2]
[362686113,1748397049997,-229.18805157,0.00020226,2]
[362686115,1748397050006,-160.0,0.00020226,2]
[362686117,1748397050015,-423.16111059,0.00020226,2]
[362686119,1748397050024,-842.5625,0.00020226,2]
[362686121,1748397050034,-212.62946336,0.00020226,2]
[362686123,1748397050044,-160.0,0.00020226,2]
[362686125,1748397050054,-474.81418434,0.00020245,2]
[362686127,1748397050063,-430.0,0.00020273,2]
[362686129,1748397050072,-430.0,0.00020273,2]
[362686131,1748397050081,-431.03,0.00020273,2]
[362686133,1748397050091,-410.90895705,0.00020273,2]
[362686135,1748397050100,-430.0,0.00020273,2]
[362686137,1748397050109,-3523.1,0.00020273,2]
[362686139,1748397050118,-430.0,0.00020273,2]
[362686140,1748397050127,-430.0,0.00020273,2]
[362686142,1748397050136,-430.0,0.00020273,2]
[362686144,1748397050146,-430.0,0.00020273,2]
[362686146,1748397050155,-643.33,0.00020273,2]
[362686148,1748397050164,-430.0,0.00020273,2]
[362686150,1748397050173,-430.0,0.00020273,2]
[362686152,1748397050183,-430.0,0.00020273,2]
[362686154,1748397050192,-863.47,0.00020273,2]
[362686156,1748397050202,-430.0,0.00020273,2]
[362686158,1748397050211,-430.0,0.00020273,2]
[362686160,1748397050221,-430.0,0.00020273,2]
[362686162,1748397050230,-430.0,0.00020273,2]
[362686164,1748397050239,-430.0,0.00020273,2]
[362686166,1748397050248,-150.40450587,0.00020273,2]
[362686168,1748397050258,-442.69,0.00020273,2]
[362686170,1748397050267,-581.12,0.00020273,2]
[362686172,1748397050276,-1389.69,0.00020273,2]
[362686174,1748397050285,-2359.7,0.00020273,2]
[362686176,1748397050294,-685.14,0.00020273,2]
[362686178,1748397050304,-1968.12,0.00020273,2]
[362686180,1748397050313,-430.0,0.00020273,2]
[362686182,1748397050322,-3368.07,0.00020273,2]
[362686184,1748397050331,-474.81418434,0.00020417,3]
[362686186,1748397050340,-207.4,0.00020442,2]
[362686188,1748397050350,-430.0,0.00020547,2]
[362686190,1748397050366,-430.0,0.00020547,2]
[362686191,1748397050375,-431.03,0.00020547,2]
[362686193,1748397050384,-430.0,0.00020547,2]
[362686195,1748397050393,-3523.1,0.00020547,2]
[362686197,1748397050404,-430.0,0.00020547,2]
[362686199,1748397050413,-549.75596932,0.00020547,2]
[362686201,1748397050422,-430.0,0.00020547,2]
[362686203,1748397050431,-430.0,0.00020547,2]
[362686205,1748397050441,-643.33,0.00020547,2]
[362686207,1748397050450,-537.56602208,0.00020547,2]
[362686209,1748397050459,-430.0,0.00020547,2]
[362686211,1748397050469,-430.0,0.00020547,2]
[362686213,1748397050477,-863.47,0.00020547,2]
[362686215,1748397050487,-430.0,0.00020547,2]
[362686217,1748397050496,-430.0,0.00020547,2]
[362686219,1748397050506,-430.0,0.00020547,2]
[362686221,1748397050515,-430.0,0.00020547,2]
[362686223,1748397050524,-430.0,0.00020547,2]
[362686225,1748397050533,-442.69,0.00020547,2]
[362686227,1748397050542,-581.12,0.00020547,2]
[362686228,1748397050552,-1389.69,0.00020547,2]
[362686230,1748397050561,-2359.7,0.00020547,2]
[362686232,1748397050570,-685.14,0.00020547,2]
[362686234,1748397050580,-1968.12,0.00020547,2]
[362686236,1748397050591,-430.0,0.00020547,2]
[362686238,1748397050600,-3368.07,0.00020547,2]
[362686240,1748397050609,-474.81418434,0.0002059,3]
[362686242,1748397050619,-21509.0155717,0.0002061,2]
[362686244,1748397050628,-151.0,0.00020643,2]
[362686246,1748397050637,-151.0,0.0002067,2]
[362686248,1748397050646,-199.51543523,0.00020698,2]
[362686250,1748397050658,-474.81418434,0.00020762,3]
[362686252,1748397050667,-430.0,0.00020821,2]
[362686254,1748397050676,-430.0,0.00020821,2]
[362686256,1748397050685,-431.03,0.00020821,2]